fUSD/lending_fUSD_20250522
["ID","MTS","AMOUNT","RATE_DAILY","PERIOD"]
[362034390,1747942232027,-839.25591156,0.00017,2]
[362034391,1747942232039,-1116.8,0.00017,2]
[362035121,1747942240053,-531.53499999,0.00017,2]
[362035319,1747942243086,-52459.79497482,0.00017,2]
[362035321,1747942243096,-590.96063933,0.00017,2]
[362035323,1747942243106,-5690.72446145,0.00018467,2]
[362035324,1747942243117,-205.80708164,0.000189,2]
[362035325,1747942243126,-350.0,0.00019,2]
[362035326,1747942243136,-317.03,0.00020187,2]
[362035327,1747942243146,-5690.72446138,0.00020594,2]
[362035328,1747942243155,-400.0,0.00021,2]
[362035329,1747942243165,-205.80708164,0.000213,5]
[362035330,1747942243174,-205.80708164,0.000225,7]
[362035331,1747942243183,-4897.54532857,0.00022721,2]
[362035332,1747942243199,-793.17913281,0.00022721,2]
[362035333,1747942243209,-385.07787503,0.00023,2]
[362035334,1747942243220,-64.92212497,0.00023,2]
[362035335,1747942243229,-205.80708164,0.000237,9]
[362035336,1747942243239,-3311.80852102,0.00024,5]
[362035337,1747942243248,-239.98922943,0.00024848,2]
[362035338,1747942243260,-5450.73523195,0.00024848,2]
[362035339,1747942243270,-205.80708164,0.000249,12]
[362035340,1747942243279,-500.0,0.00025,2]
[362035341,1747942243289,-205.80708164,0.000261,14]
[362035342,1747942243298,-317.03,0.00026676,2]
[362035343,1747942243308,-3358.62060522,0.00026975,2]
[362035344,1747942243320,-2332.10385616,0.00026975,2]
[362035345,1747942243330,-550.0,0.00027,2]
[362035346,1747942243340,-211.97124661,0.00027,2]
[362035347,1747942243350,-205.80708164,0.000273,16]
[362035348,1747942243359,-205.80708164,0.000285,19]
[362035349,1747942243369,-600.0,0.00029,2]
[362035350,1747942243378,-2065.23663349,0.00029103,2]
[362035471,1747942245909,-300.0,0.00018,5]
[362035473,1747942245919,-913.149955,0.00029103,2]
[362035478,1747942246019,-1084.34615611,0.00029103,2]
[362035479,1747942246299,-1003.50000005,0.00029103,2]
[362035480,1747942246311,-624.49171673,0.00029103,2]
[362035481,1747942246321,-1000.0,0.00029176,2]
[362035482,1747942246331,-205.80708164,0.000297,21]
[362035483,1747942246341,-533.69,0.00030808,2]
[362035484,1747942246351,-205.80708164,0.000309,23]
[362035485,1747942246361,-650.0,0.00031,2]
[362035486,1747942246370,-5690.72446138,0.0003123,2]
[362035490,1747942246440,-151.32,0.00031691,2]
[362035492,1747942246449,-205.80708164,0.000321,26]
[362035494,1747942246458,-151.74,0.00032407,2]
[362035496,1747942246468,-200.0,0.00032736,117]
[362035498,1747942246477,-16000.0,0.00032748,3]
[362035499,1747942246487,-162.98549227,0.00032776,2]
[362035500,1747942246496,-1000.0,0.00032823,2]
[362035501,1747942246505,-420.0,0.00032876,5]
[362035502,1747942246515,-420.0,0.00032876,5]
[362035503,1747942246524,-420.0,0.00032876,5]
[362035504,1747942246535,-420.0,0.00032876,5]
[362035505,1747942246544,-420.0,0.00032876,5]
[362035506,1747942246554,-420.0,0.00032876,5]
[362035507,1747942246568,-663.22,0.00032876,5]
[362035508,1747942246578,-420.0,0.00032876,5]
[362035509,1747942246588,-420.0,0.00032876,5]
[362035510,1747942246597,-420.0,0.00032876,5]
[362035511,1747942246607,-434.82,0.00032876,5]
[362035513,1747942246617,-420.0,0.00032876,5]
[362035514,1747942246626,-420.0,0.00032876,5]
[362035516,1747942246636,-435.0,0.00032876,5]
[362035518,1747942246646,-420.0,0.00032876,5]
[362035519,1747942246656,-420.0,0.00032876,5]
[362035521,1747942246665,-424.88,0.00032876,5]
[362035524,1747942246675,-3136.92,0.00032876,2]
[362035525,1747942246685,-420.0,0.00032876,5]
[362035527,1747942246695,-420.0,0.00032876,5]
[362035529,1747942246704,-147.69413982,0.00032876,5]
[362035566,1747942718402,150.0,0.00013015,2]
[362035568,1747943152337,-309.02,0.00013699,2]
[362035569,1747943152358,-200.0,0.00015068,2]
[362035570,1747943152379,-289.42229683,0.00018524,2]
[362035571,1747943152399,-309.02,0.00020187,2]
[362035572,1747943152420,-309.02,0.00026676,2]
[362035573,1747943152441,-96.43709369,0.00027865,2]
[362035574,1747943231119,-410.56290631,0.00027865,2]
[362035575,1747943231143,-200.0,0.00028996,117]
[362035576,1747943231165,-507.0,0.00030128,2]
[362035577,1747943231186,-200.0,0.00030651,117]
[362035578,1747943231209,-207.0,0.00031307,2]
[362035579,1747943231230,-319.45,0.00031693,120]
[362035580,1747943231251,-202.05,0.00031849,2]
[362035581,1747943231272,-239.71,0.00032018,2]
[362035582,1747943231296,-155.38,0.00032064,120]
[362035583,1747943231316,-151.32,0.00032159,2]
[362035584,1747943231336,-817.06573279,0.00032165,2]
[362035585,1747943231357,-150.0,0.00032239,7]
[362035586,1747943231378,-160.52,0.00032319,2]
[362035587,1747943231398,-16.01524062,0.00032392,2]
[362035588,1747943241086,-226.53911989,0.00032392,2]
[362035595,1747943350091,-250.0,0.00015,2]
[362035596,1747943350113,-230.687418,0.00017,2]
[362035597,1747943350143,-69.312582,0.00017,2]
[362035598,1747943350163,-276.48995632,0.00019,2]
[362035626,1747943432148,-73.51004368,0.00019,2]
[362035628,1747943432158,-400.0,0.00021,2]
[362035630,1747943432167,-61.87839612,0.00023,2]
[362035633,1747943432179,-388.12160388,0.00023,2]
[362035635,1747943432189,-500.0,0.00025,2]
[362035637,1747943432198,-550.0,0.00027,2]
[362035639,1747943432208,-600.0,0.00029,2]
[362035640,1747943432218,-650.0,0.00031,2]
[362035641,1747943432227,-1000.0,0.00031879,2]
[362035642,1747943432237,-264.44563949,0.00032392,2]
[362035643,1747943432246,-1341.02613202,0.0003255,2]
[362035644,1747943432257,-1047.74755798,0.0003255,2]
[362035645,1747943432267,-817.06573279,0.00032658,2]
[362035646,1747943432277,-1260.0,0.00032698,3]
[362035647,1747943432286,-223.78670923,0.000327,2]
[362035648,1747943432298,-819.33484271,0.000327,2]
[362035649,1747943432348,-18000.94,0.000327,2]
[362035650,1747943432360,-9585.56844806,0.000327,2]
[362035651,1747943432369,-1100.0,0.000327,11]
[362035652,1747943432379,-2160.10863834,0.00032776,2]
[362035653,1747943432388,-2300.0,0.000328,11]
[362035654,1747943432398,-150.0,0.00032875,2]
[362035655,1747943432407,-420.0,0.00032876,5]
[362035656,1747943432416,-420.0,0.00032876,5]
[362035657,1747943432425,-420.0,0.00032876,5]
[362035658,1747943432435,-420.0,0.00032876,5]
[362035659,1747943432444,-420.0,0.00032876,5]
[362035660,1747943432453,-420.0,0.00032876,5]
[362035661,1747943432463,-420.0,0.00032876,5]
[362035662,1747943432473,-420.0,0.00032876,5]
[362035663,1747943432482,-420.0,0.00032876,5]
[362035664,1747943432492,-420.0,0.00032876,5]
[362035665,1747943432502,-420.0,0.00032876,5]
[362035666,1747943432511,-420.0,0.00032876,5]
[362035667,1747943432521,-420.0,0.00032876,5]
[362035669,1747943432531,-420.0,0.00032876,5]
[362035671,1747943432540,-414.88157596,0.00032876,5]
[362035673,1747943432550,-420.0,0.00032876,5]
[362035675,1747943432558,-420.0,0.00032876,5]
[362035676,1747943432568,-420.0,0.00032876,5]
[362035678,1747943432577,-420.0,0.00032876,5]
[362035680,1747943432587,-420.0,0.00032876,5]
[362035681,1747943432597,-420.0,0.00032876,5]
[362035683,1747943432607,-420.0,0.00032876,5]
[362035685,1747943432616,-420.0,0.00032876,5]
[362035687,1747943432625,-420.0,0.00032876,5]
[362035688,1747943432635,-420.0,0.00032876,5]
[362035690,1747943432644,-420.0,0.00032876,5]
[362035692,1747943432653,-420.0,0.00032876,5]
[362035695,1747943432663,-420.0,0.00032876,5]
[362035697,1747943432673,-420.0,0.00032876,5]
[362035700,1747943432682,-420.0,0.00032876,5]
[362035702,1747943432691,-420.0,0.00032876,5]
[362035706,1747943432701,-420.0,0.00032876,5]
[362035709,1747943432711,-420.0,0.00032876,5]
[362035713,1747943432721,-420.0,0.00032876,5]
[362035717,1747943432730,-420.0,0.00032876,5]
[362035720,1747943432740,-420.0,0.00032876,5]
[362035723,1747943432750,-420.0,0.00032876,5]
[362035726,1747943432760,-420.0,0.00032876,5]
[362035728,1747943432770,-420.0,0.00032876,5]
[362035731,1747943432779,-420.0,0.00032876,5]
[362035734,1747943432790,-420.0,0.00032876,5]
[362035737,1747943432800,-420.0,0.00032876,5]
[362035739,1747943432810,-420.0,0.00032876,5]
[362035741,1747943432819,-420.0,0.00032876,5]
[362035742,1747943432828,-420.0,0.00032876,5]
[362035744,1747943432838,-332.02259776,0.00032876,5]
[362035746,1747943432847,-420.0,0.00032876,5]
[362035748,1747943432857,-420.0,0.00032876,5]
[362035749,1747943432867,-420.0,0.00032876,5]
[362035751,1747943432876,-420.0,0.00032876,5]
[362035753,1747943432886,-420.0,0.00032876,5]
[362035755,1747943432896,-420.0,0.00032876,5]
[362035757,1747943432905,-420.0,0.00032876,5]
[362035758,1747943432914,-420.0,0.00032876,5]
[362035760,1747943432923,-420.0,0.00032876,5]
[362035762,1747943432933,-420.0,0.00032876,5]
[362035764,1747943432942,-420.0,0.00032876,5]
[362035766,1747943432952,-420.0,0.00032876,5]
[362035768,1747943432966,-420.0,0.00032876,5]
[362035770,1747943432976,-420.0,0.00032876,5]
[362035772,1747943432985,-420.0,0.00032876,5]
[362035773,1747943432995,-420.0,0.00032876,5]
[362035775,1747943433005,-420.0,0.00032876,5]
[362035777,1747943433014,-420.0,0.00032876,5]
[362035779,1747943433024,-420.0,0.00032876,5]
[362035781,1747943433035,-420.0,0.00032876,5]
[362035783,1747943433045,-420.0,0.00032876,5]
[362035784,1747943433055,-420.0,0.00032876,5]
[362035786,1747943433065,-420.0,0.00032876,5]
[362035788,1747943433074,-420.0,0.00032876,5]
[362035790,1747943433084,-420.0,0.00032876,5]
[362035792,1747943433094,-296.00396984,0.00032876,5]
[362035793,1747943433104,-420.0,0.00032876,5]
[362035795,1747943433113,-420.0,0.00032876,5]
[362035797,1747943433123,-420.0,0.00032876,5]
[362035799,1747943433132,-334.68824937,0.00032876,5]
[362035801,1747943433142,-420.0,0.00032876,5]
[362035803,1747943433151,-420.0,0.00032876,5]
[362035804,1747943433161,-420.0,0.00032876,5]
[362035806,1747943433170,-420.0,0.00032876,5]
[362035808,1747943433180,-420.0,0.00032876,5]
[362035810,1747943433189,-469.91,0.00032876,5]
[362035812,1747943433199,-420.0,0.00032876,5]
[362035814,1747943433209,-420.0,0.00032876,5]
[362035816,1747943433218,-716.28,0.00032876,5]
[362035817,1747943433228,-420.0,0.00032876,5]
[362035819,1747943433237,-420.0,0.00032876,5]
[362035821,1747943433246,-420.0,0.00032876,5]
[362035823,1747943433255,-420.0,0.00032876,5]
[362035825,1747943433265,-313.92693086,0.00032876,5]
[362035826,1747943433274,-420.0,0.00032876,5]
[362035828,1747943433283,-420.0,0.00032876,5]
[362035830,1747943433292,-420.0,0.00032876,5]
[362035832,1747943433302,-420.0,0.00032876,5]
[362035834,1747943433311,-420.0,0.00032876,5]
[362035835,1747943433320,-420.0,0.00032876,5]
[362035837,1747943433330,-420.0,0.00032876,5]
[362035839,1747943433338,-420.0,0.00032876,5]
[362035841,1747943433349,-431.29075856,0.00032876,5]
[362035843,1747943433358,-420.0,0.00032876,5]
[362035845,1747943433367,-420.0,0.00032876,5]
[362035846,1747943433376,-420.0,0.00032876,5]
[362035848,1747943433385,-420.0,0.00032876,5]
[362035850,1747943433395,-420.0,0.00032876,5]
[362035852,1747943433404,-420.0,0.00032876,5]
[362035854,1747943433413,-420.0,0.00032876,5]
[362035860,1747943433476,-344.06844002,0.00032876,5]
[362035862,1747943433485,-420.0,0.00032876,5]
[362035864,1747943433494,-428.27,0.00032876,5]
[362035866,1747943433504,-420.0,0.00032876,5]
[362035868,1747943433513,-420.0,0.00032876,5]
[362035869,1747943433522,-420.0,0.00032876,5]
[362035871,1747943433532,-420.0,0.00032876,5]
[362035873,1747943433541,-420.0,0.00032876,5]
[362035875,1747943433550,-420.0,0.00032876,5]
[362035877,1747943433559,-420.0,0.00032876,5]
[362035878,1747943433568,-452.04843446,0.00032876,5]
[362035880,1747943433577,-443.02,0.00032876,5]
[362035882,1747943433586,-420.0,0.00032876,5]
[362035883,1747943433595,-420.0,0.00032876,5]
[362035884,1747943433605,-420.0,0.00032876,5]
[362035885,1747943433614,-420.0,0.00032876,5]
[362035886,1747943433623,-420.0,0.00032876,5]
[362035887,1747943433633,-420.0,0.00032876,5]
[362035888,1747943433642,-420.0,0.00032876,5]
[362035889,1747943433651,-420.0,0.00032876,5]
[362035890,1747943433661,-420.0,0.00032876,5]
[362035891,1747943433670,-420.0,0.00032876,5]
[362035892,1747943433679,-420.0,0.00032876,5]
[362035893,1747943433688,-420.0,0.00032876,5]
[362035894,1747943433698,-420.0,0.00032876,5]
[362035895,1747943433706,-420.0,0.00032876,5]
[362035896,1747943433716,-420.0,0.00032876,5]
[362035897,1747943433726,-420.0,0.00032876,5]
[362035898,1747943433735,-420.0,0.00032876,5]
[362035899,1747943433745,-420.0,0.00032876,5]
[362035900,1747943433755,-420.0,0.00032876,5]
[362035901,1747943433764,-420.0,0.00032876,5]
[362035902,1747943433773,-300.0,0.00032876,5]
[362035903,1747943433783,-420.0,0.00032876,5]
[362035904,1747943433793,-420.0,0.00032876,5]
[362035905,1747943433803,-420.0,0.00032876,5]
[362035906,1747943433812,-420.0,0.00032876,5]
[362035907,1747943433822,-420.0,0.00032876,5]
[362035908,1747943433831,-420.0,0.00032876,5]
[362035909,1747943433840,-420.0,0.00032876,5]
[362035910,1747943433850,-420.0,0.00032876,5]
[362035911,1747943433859,-420.0,0.00032876,5]
[362035912,1747943433868,-420.0,0.00032876,5]
[362035914,1747943433878,-420.0,0.00032876,5]
[362035915,1747943433887,-420.0,0.00032876,5]
[362035916,1747943433896,-420.0,0.00032876,5]
[362035917,1747943433905,-420.0,0.00032876,5]
[362035919,1747943433914,-420.0,0.00032876,5]
[362035921,1747943433924,-420.0,0.00032876,5]
[362035923,1747943433933,-420.0,0.00032876,5]
[362035925,1747943433942,-420.0,0.00032876,5]
[362035927,1747943433951,-420.0,0.00032876,5]
[362035928,1747943433962,-420.0,0.00032876,5]
[362035930,1747943433974,-420.0,0.00032876,5]
[362035932,1747943433983,-420.0,0.00032876,5]
[362035934,1747943433993,-500.0,0.00032876,5]
[362035936,1747943434003,-420.0,0.00032876,5]
[362035938,1747943434013,-420.0,0.00032876,5]
[362035940,1747943434022,-420.0,0.00032876,5]
[362035942,1747943434032,-420.0,0.00032876,5]
[362035944,1747943434042,-420.0,0.00032876,5]
[362035946,1747943434051,-420.0,0.00032876,5]
[362035948,1747943434060,-420.0,0.00032876,5]
[362035950,1747943434069,-420.0,0.00032876,5]
[362035952,1747943434078,-488.63,0.00032876,5]
[362035954,1747943434087,-420.0,0.00032876,5]
[362035956,1747943434096,-420.0,0.00032876,5]
[362035958,1747943434105,-420.0,0.00032876,5]
[362035960,1747943434114,-420.0,0.00032876,5]
[362035961,1747943434123,-420.0,0.00032876,5]
[362035963,1747943434132,-420.0,0.00032876,5]
[362035965,1747943434141,-420.0,0.00032876,5]
[362035967,1747943434151,-420.0,0.00032876,5]
[362035969,1747943434160,-420.0,0.00032876,5]
[362035971,1747943434169,-420.0,0.00032876,5]
[362035973,1747943434178,-420.0,0.00032876,5]
[362035975,1747943434187,-420.0,0.00032876,5]
[362035977,1747943434196,-420.0,0.00032876,5]
[362035979,1747943434206,-420.0,0.00032876,5]
[362035981,1747943434216,-420.0,0.00032876,5]
[362035983,1747943434225,-420.0,0.00032876,5]
[362035985,1747943434234,-420.0,0.00032876,5]
[362035987,1747943434243,-420.0,0.00032876,5]
[362035989,1747943434252,-420.0,0.00032876,5]
[362035991,1747943434262,-420.0,0.00032876,5]
[362035993,1747943434271,-420.0,0.00032876,5]
[362035995,1747943434280,-420.0,0.00032876,5]
[362035997,1747943434289,-420.0,0.00032876,5]
[362035999,1747943434299,-420.0,0.00032876,5]
[362036001,1747943434308,-420.0,0.00032876,5]
[362036003,1747943434317,-420.0,0.00032876,5]
[362036005,1747943434326,-200.0,0.00032876,120]
[362036007,1747943434335,-13639.28195679,0.00032877,11]
[362036012,1747943434382,-11760.26009861,0.00032877,11]
[362036020,1747943434448,-269.652,0.00032877,11]
[362036022,1747943434460,-718.30226286,0.00032877,11]
[362036025,1747943434471,-577.55398768,0.00032877,11]
[362036033,1747943434545,-1069.85932377,0.00032877,11]
[362036036,1747943434556,-1864.56664616,0.00032877,11]
[362036388,1747943438146,-967.81598497,0.00032877,11]
[362036395,1747943438200,-3284.615843,0.00032877,11]
[362036420,1747943438437,-415.11931988,0.00032877,11]
[362036608,1747943440242,-310.74090153,0.00032877,11]
[362036625,1747943440399,-35915.18002031,0.00032877,11]
[362037143,1747943446151,-1211.650015,0.00032877,11]
[362037144,1747943446366,-336707.61376372,0.00032877,11]
[362037145,1747943446422,-13357.1826,0.00032877,11]
[362037149,1747943758307,-322.9,0.00013699,2]
[362037150,1747943758334,-250.0,0.00015068,2]
[362037151,1747943758361,-200.0,0.00015068,2]
[362037152,1747944046801,151.0,0.00015068,2]
[362037153,1747944046842,270.67553871,0.00015068,2]
[362037154,1747944348390,255.4818336,0.00015068,2]
[362037155,1747944349164,191.6113752,0.00015068,2]
[362037156,1747944349714,151.0,0.00015068,2]
[362037157,1747944350397,151.0,0.00015068,2]
[362037158,1747944351272,272.83412561,0.00015068,2]
[362037159,1747944356149,-322.9,0.00020187,2]
[362037160,1747944356170,-343.16068781,0.00020187,2]
[362037161,1747944436101,-156.83931219,0.00020187,2]
[362037162,1747944436124,-45.8145998,0.00026,2]
[362037168,1747944632273,-1467.0,0.000253,2]
[362037169,1747944632282,-532.24812308,0.000261,3]
[362037170,1747944632294,-450.0,0.000261,3]
[362037171,1747944632369,-454.92529219,0.000261,3]
[362037172,1747944632381,-476.47053834,0.000261,3]
[362037173,1747944632392,-1327.70118,0.000261,3]
[362037174,1747944632404,-2319.65486639,0.000261,3]
[362037175,1747944632414,-322.9,0.00026676,2]
[362037176,1747944632424,-205.33166861,0.000269,16]
[362037177,1747944632433,-4221.57993559,0.00027,5]
[362037178,1747944632445,-1339.42006441,0.00027,5]
[362037179,1747944632455,-195.19839076,0.00027198,2]
[362037180,1747944632471,-1004.80160924,0.00027198,2]
[362037181,1747944632481,-299.75100064,0.00027199,2]
[362037182,1747944632492,-0.24899936,0.00027199,2]
[362037183,1747944632502,-414.84821845,0.00027273,2]
[362037184,1747944632515,-28.25457644,0.00027273,2]
[362037185,1747944632526,-205.33166848,0.0002754,17]
[362037186,1747944632535,-205.33166848,0.0002818,18]
[362037187,1747944632545,-205.33166848,0.0002882,19]
[362037188,1747944632554,-420.0,0.00029399,2]
[362037189,1747944632564,-448.63981959,0.00029425,2]
[362037190,1747944632576,-86.95018041,0.00029425,2]
[362037191,1747944632586,-6945.12,0.00029425,2]
[362037192,1747944632595,-205.33166848,0.0002946,21]
[362037193,1747944632605,-6671.21539224,0.0003,5]
[362037194,1747944632617,-350.0,0.0003,5]
[362037195,1747944632629,-748.44104968,0.0003,5]
[362037196,1747944632644,-2791.6271114,0.0003,5]
[362037197,1747944632656,-4438.71644668,0.0003,5]
[362037198,1747944632666,-205.33166848,0.000301,22]
[362037199,1747944632677,-247.61213977,0.00030135,2]
[362037200,1747944632687,-160.52,0.00030405,2]
[362037201,1747944632697,-321.77,0.00030544,2]
[362037203,1747944632707,-856.03874308,0.00030567,2]
[362037205,1747944632718,-143.96125692,0.00030567,2]
[362037208,1747944632728,-1014.78455142,0.00030579,2]
[362037209,1747944632738,-250.0,0.0003058,2]
[362037211,1747944632748,-200.0,0.0003058,117]
[362037214,1747944632758,-200.0,0.00030679,2]
[362037216,1747944632771,-204.80505397,0.00030727,2]
[362037218,1747944632781,-150.0,0.00030727,2]
[362037220,1747944632792,-205.33166848,0.0003074,23]
[362037222,1747944632802,-150.61,0.00030783,2]
[362037223,1747944632816,-414.20746921,0.00030791,120]
[362037227,1747944632831,-1074.54742573,0.00030791,120]
[362037231,1747944632843,-11.24510506,0.00030791,120]
[362037233,1747944632851,-813.30944494,0.00030813,120]
[362037236,1747944632863,-1743.33194775,0.00030813,120]
[362037645,1747944640400,-300.0,0.00026999,2]
[362037646,1747944640410,-3.13860731,0.00030813,120]
[362037647,1747944640419,-207.4,0.00030904,2]
[362037648,1747944640429,-284.04,0.00030938,2]
[362037649,1747944640439,-150.0,0.00030955,7]
[362037650,1747944640449,-146.27985348,0.00031,5]
[362037651,1747944640460,-776.29732961,0.00031,5]
[362037652,1747944640475,-630.11771902,0.00031,5]
[362037653,1747944640486,-5107.5,0.00031,5]
[362037654,1747944640504,-1189.641,0.00031,5]
[362037655,1747944640611,-650.0,0.00031,5]
[362037692,1747944643963,-419.3400005,0.00031,5]
[362037693,1747944643976,-443.88181818,0.00031,5]
[362037694,1747944644025,-467.67270035,0.00031,5]
[362037695,1747944644123,-5169.26957886,0.00031,5]
[362037696,1747944644133,-151.33,0.00031114,2]
[362037697,1747944644144,-205.33166848,0.0003138,24]
[362037698,1747944644154,-150.99,0.00031426,2]
[362037699,1747944644164,-9999.99,0.00031426,2]
[362037700,1747944644174,-240.23,0.00031426,2]
[362037701,1747944644184,-3753.33,0.00031426,2]
[362037702,1747944644194,-297.6,0.00031426,2]
[362037703,1747944644204,-10439.0,0.00031426,10]
[362037704,1747944644213,-535.59,0.00031689,2]
[362037705,1747944644223,-587.0,0.00031777,2]
[362037706,1747944644232,-15000.0,0.00032,5]
[362037707,1747944644244,-205.33166848,0.0003202,26]
[362037708,1747944644255,-298.96882194,0.00032241,2]
[362037709,1747944644265,-156.13764048,0.00032241,2]
[362037710,1747944644274,-1199.20597015,0.00032241,2]
[362037711,1747944644283,-215.0738,0.00032273,2]
[362037713,1747944644293,-1198.12116735,0.000325,5]
[362037715,1747944644416,-11100.0,0.000325,5]
[362037717,1747944644433,-3123.03218771,0.000325,5]
[362037719,1747944644442,-205.33166848,0.0003266,27]
[362037721,1747944644452,-2300.0,0.000327,11]
[362037723,1747944644462,-817.0657328,0.00032734,2]
[362037725,1747944644471,-1320.23928269,0.00032776,29]
[362037727,1747944644480,-799.0,0.00032778,2]
[362037729,1747944644489,-585.0,0.00032778,2]
[362037731,1747944644498,-1256.0,0.00032778,2]
[362037733,1747944644507,-1460.0,0.00032778,2]
[362037735,1747944644516,-921.0,0.00032778,2]
[362037737,1747944644526,-554.0,0.00032778,2]
[362037739,1747944644535,-4600.0,0.000328,11]
[362037741,1747944644545,-5000.76599213,0.000328,30]
[362037743,1747944644555,-1021.6172,0.00032865,2]
[362037745,1747944644573,-161.03,0.00032866,2]
[362037747,1747944644584,-6449.98781513,0.0003287,2]
[362037755,1747944646383,-2273.09410574,0.0003287,2]
[362037756,1747944646395,-1864.12420033,0.0003287,2]
[362037757,1747944646438,-2894.8629691,0.0003287,2]
[362037758,1747944646447,-1000.0,0.00032875,2]
[362037759,1747944646459,-500.0,0.00032875,2]
[362037760,1747944646472,-500.0,0.00032875,2]
[362037761,1747944646483,-500.0,0.00032875,2]
[362037762,1747944646495,-500.0,0.00032875,2]
[362037763,1747944646506,-500.0,0.00032875,2]
[362037764,1747944646516,-500.0,0.00032875,2]
[362037765,1747944646527,-500.0,0.00032875,2]
[362037766,1747944646538,-500.0,0.00032875,2]
[362037767,1747944646550,-500.0,0.00032875,2]
[362037768,1747944646562,-500.0,0.00032875,2]
[362037769,1747944646575,-500.0,0.00032875,2]
[362037770,1747944646587,-500.0,0.00032875,2]
[362037771,1747944646600,-289.50499067,0.00032875,2]
[362037772,1747944646612,-500.0,0.00032875,2]
[362037773,1747944646625,-500.0,0.00032875,2]
[362037774,1747944646637,-500.0,0.00032875,2]
[362037775,1747944646648,-500.0,0.00032875,2]
[362037776,1747944646660,-500.0,0.00032875,2]
[362037777,1747944646670,-500.0,0.00032875,2]
[362037778,1747944646680,-500.0,0.00032875,2]
[362037779,1747944646693,-152.56228768,0.00032875,2]
[362037780,1747944646705,-420.0,0.00032876,5]
[362037783,1747944646718,-437.88,0.00032876,5]
[362037785,1747944646729,-420.0,0.00032876,5]
[362037787,1747944646741,-420.0,0.00032876,5]
[362037789,1747944646753,-189.06556656,0.00032876,5]
[362037791,1747944646765,-420.0,0.00032876,5]
[362037793,1747944646777,-420.0,0.00032876,5]
[362037795,1747944646789,-420.0,0.00032876,5]
[362037797,1747944646801,-420.0,0.00032876,5]
[362037800,1747944646813,-420.0,0.00032876,5]
[362037802,1747944646825,-420.0,0.00032876,5]
[362037804,1747944646836,-246.74733988,0.00032876,5]
[362037806,1747944646847,-420.0,0.00032876,5]
[362037809,1747944646861,-420.0,0.00032876,5]
[362037811,1747944646873,-420.0,0.00032876,5]
[362037813,1747944646885,-569.35969856,0.00032876,5]
[362037815,1747944646897,-420.0,0.00032876,5]
[362037817,1747944646909,-420.0,0.00032876,5]
[362037820,1747944646921,-420.0,0.00032876,5]
[362037822,1747944646932,-420.0,0.00032876,5]
[362037824,1747944646946,-420.0,0.00032876,5]
[362037826,1747944646959,-420.0,0.00032876,5]
[362037829,1747944646971,-420.0,0.00032876,5]
[362037831,1747944646984,-420.0,0.00032876,5]
[362037833,1747944646996,-420.0,0.00032876,5]
[362037835,1747944647008,-420.0,0.00032876,5]
[362037838,1747944647019,-420.0,0.00032876,5]
[362037840,1747944647030,-420.0,0.00032876,5]
[362037842,1747944647040,-420.0,0.00032876,5]
[362037844,1747944647050,-420.0,0.00032876,5]